[Event "*** Titled Tuesday Blitz"]
[Site "Chess.com"]
[Date "2020.04.21"]
[Round "7"]
[White "SerGo055"]
[Black "AlexTriapishko"]
[Result "0-1"]
[WhiteElo "2576"]
[BlackElo "2752"]
[TimeControl "180+1"]
[EndTime "11:21:43 PDT"]
[Termination "AlexTriapishko won on time"]

1. d4 {[%clk 0:03:00.9]} 1... Nf6 {[%clk 0:02:59.4]} 2. Nf3 {[%clk 0:03:01.2]}
2... g6 {[%clk 0:02:59.9]} 3. c4 {[%clk 0:03:01.5]} 3... Bg7 {[%clk 0:03:00.4]}
4. Nc3 {[%clk 0:03:02.1]} 4... d5 {[%clk 0:03:01.1]} 5. e3 {[%clk 0:03:00.9]}
5... O-O {[%clk 0:03:00.6]} 6. Qb3 {[%clk 0:03:00.5]} 6... e6 {[%clk 0:02:59]}
7. Bd2 {[%clk 0:02:58.7]} 7... b6 {[%clk 0:02:59.3]} 8. Rd1 {[%clk 0:02:46.6]}
8... Bb7 {[%clk 0:02:56.3]} 9. cxd5 {[%clk 0:02:46.8]} 9... exd5 {[%clk
0:02:56.3]} 10. Be2 {[%clk 0:02:45.6]} 10... Nbd7 {[%clk 0:02:56.7]} 11. O-O
{[%clk 0:02:45.3]} 11... Re8 {[%clk 0:02:57.3]} 12. Rc1 {[%clk 0:02:36.3]} 12...
a6 {[%clk 0:02:38.6]} 13. Rfd1 {[%clk 0:02:35]} 13... Ra7 {[%clk 0:02:35.2]} 14.
Bf1 {[%clk 0:02:21.1]} 14... c5 {[%clk 0:02:34.9]} 15. dxc5 {[%clk 0:02:16.7]}
15... bxc5 {[%clk 0:02:35.4]} 16. Na4 {[%clk 0:01:54.3]} 16... Ne4 {[%clk
0:02:34.7]} 17. Be1 {[%clk 0:01:50.8]} 17... Qa8 {[%clk 0:02:28.6]} 18. Ba5
{[%clk 0:01:43]} 18... Bc6 {[%clk 0:02:26]} 19. Nc3 {[%clk 0:01:28.5]} 19... Rb8
{[%clk 0:02:15.6]} 20. Qc2 {[%clk 0:01:25.5]} 20... d4 {[%clk 0:01:52.7]} 21.
exd4 {[%clk 0:01:17.9]} 21... Nxc3 {[%clk 0:01:52.9]} 22. Bxc3 {[%clk
0:01:06.3]} 22... Bxf3 {[%clk 0:01:53.1]} 23. gxf3 {[%clk 0:01:06.7]} 23... c4
{[%clk 0:01:45.5]} 24. Bxc4 {[%clk 0:00:55]} 24... Qxf3 {[%clk 0:01:45.3]} 25.
Rd3 {[%clk 0:00:47]} 25... Qf4 {[%clk 0:01:39.6]} 26. Re1 {[%clk 0:00:39]} 26...
Nb6 {[%clk 0:01:30.9]} 27. Bb3 {[%clk 0:00:33.9]} 27... Rd7 {[%clk 0:01:27.1]}
28. Qe2 {[%clk 0:00:20.6]} 28... Nd5 {[%clk 0:01:20.9]} 29. Rf3 {[%clk
0:00:17.2]} 29... Qg5+ {[%clk 0:01:15.5]} 30. Rg3 {[%clk 0:00:16.9]} 30... Qf5
{[%clk 0:01:06.6]} 31. Qe4 {[%clk 0:00:16.1]} 31... Qh5 {[%clk 0:01:01.8]} 32.
Qg4 {[%clk 0:00:13.4]} 32... Qxg4 {[%clk 0:00:54.6]} 33. Rxg4 {[%clk 0:00:14.3]}
33... Rc8 {[%clk 0:00:55.5]} 34. Rg3 {[%clk 0:00:10]} 34... Nf4 {[%clk
0:00:52.2]} 35. Re4 {[%clk 0:00:06.6]} 35... Rxd4 {[%clk 0:00:43.8]} 36. Rxd4
{[%clk 0:00:02.2]} 36... Bxd4 {[%clk 0:00:42.8]} 0-1

[Event "*** Titled Tuesday Blitz"]
[Site "Chess.com"]
[Date "2020.04.21"]
[Round "7"]
[White "Angel_Hranitel_37"]
[Black "AlexandraBotez"]
[Result "1-0"]
[WhiteElo "2378"]
[BlackElo "2114"]
[TimeControl "180+1"]
[EndTime "11:21:44 PDT"]
[Termination "Angel_Hranitel_37 won by resignation"]

1. d4 {[%clk 0:02:54.3]} 1... Nf6 {[%clk 0:02:59.5]} 2. c4 {[%clk 0:02:55.2]}
2... g6 {[%clk 0:02:59.3]} 3. Nf3 {[%clk 0:02:54.9]} 3... Bg7 {[%clk 0:02:58.5]}
4. g3 {[%clk 0:02:45.5]} 4... d5 {[%clk 0:02:52]} 5. Bg2 {[%clk 0:02:46.2]} 5...
dxc4 {[%clk 0:02:51.6]} 6. O-O {[%clk 0:02:45.2]} 6... O-O {[%clk 0:02:51.5]} 7.
Na3 {[%clk 0:02:35.9]} 7... Nc6 {[%clk 0:02:36.6]} 8. Nxc4 {[%clk 0:02:33.7]}
8... Be6 {[%clk 0:02:35.4]} 9. b3 {[%clk 0:02:33.2]} 9... Ne4 {[%clk 0:02:22.5]}
10. Bb2 {[%clk 0:02:25.5]} 10... Qd7 {[%clk 0:02:01.3]} 11. Nfe5 {[%clk
0:02:15.3]} 11... Nxe5 {[%clk 0:01:53.9]} 12. Nxe5 {[%clk 0:02:15.1]} 12... Bxe5
{[%clk 0:01:52]} 13. dxe5 {[%clk 0:01:59.6]} 13... Bd5 {[%clk 0:01:30.2]} 14.
Bxe4 {[%clk 0:01:57]} 14... c6 {[%clk 0:01:16.2]} 15. Bxd5 {[%clk 0:01:51.1]}
15... cxd5 {[%clk 0:01:15.6]} 16. e4 {[%clk 0:01:50.8]} 16... Rfd8 {[%clk
0:01:12.2]} 17. exd5 {[%clk 0:01:49.8]} 17... Qb5 {[%clk 0:01:07.9]} 18. e6
{[%clk 0:01:45.3]} 18... f6 {[%clk 0:01:06.6]} 19. Qg4 {[%clk 0:01:10.7]} 19...
Rxd5 {[%clk 0:01:04.6]} 20. Rfd1 {[%clk 0:01:10.4]} 20... Rf5 {[%clk 0:00:41.4]}
21. Rd7 {[%clk 0:01:06.5]} 21... Qb6 {[%clk 0:00:36.7]} 22. Qe2 {[%clk
0:00:50.5]} 22... Re8 {[%clk 0:00:19.7]} 23. Rc1 {[%clk 0:00:46.1]} 23... Qb4
{[%clk 0:00:17.5]} 24. Rcc7 {[%clk 0:00:44.3]} 24... b5 {[%clk 0:00:14.2]} 25.
Rxa7 {[%clk 0:00:43.4]} 25... h5 {[%clk 0:00:14.1]} 26. Ba3 {[%clk 0:00:40.7]}
26... Qc3 {[%clk 0:00:11.7]} 27. Rxe7 {[%clk 0:00:38.2]} 27... Rxe7 {[%clk
0:00:08.2]} 28. Rxe7 {[%clk 0:00:39.1]} 28... h4 {[%clk 0:00:07]} 29. Bb2 {[%clk
0:00:30.7]} 29... Qc5 {[%clk 0:00:04.9]} 30. Rd7 {[%clk 0:00:26.1]} 30... h3
{[%clk 0:00:05.3]} 31. e7 {[%clk 0:00:24.9]} 31... Rxf2 {[%clk 0:00:03.4]} 32.
e8=Q+ {[%clk 0:00:24.4]} 1-0

[Event "*** Titled Tuesday Blitz"]
[Site "Chess.com"]
[Date "2020.04.21"]
[Round "7"]
[White "Oligan22"]
[Black "fancyknightmaneuvers"]
[Result "1-0"]
[WhiteElo "2440"]
[BlackElo "2581"]
[TimeControl "180+1"]
[EndTime "11:21:45 PDT"]
[Termination "Oligan22 won by resignation"]

1. e4 {[%clk 0:03:00.9]} 1... c5 {[%clk 0:02:59.8]} 2. Nf3 {[%clk 0:03:00.7]}
2... e6 {[%clk 0:03:00]} 3. d4 {[%clk 0:03:01.3]} 3... cxd4 {[%clk 0:03:00.9]}
4. Nxd4 {[%clk 0:03:02.1]} 4... Nc6 {[%clk 0:03:01.5]} 5. Nc3 {[%clk 0:03:02.8]}
5... Qc7 {[%clk 0:03:01.5]} 6. Be2 {[%clk 0:03:02.8]} 6... a6 {[%clk 0:03:00.4]}
7. Be3 {[%clk 0:03:00.4]} 7... Nf6 {[%clk 0:03:00.2]} 8. f4 {[%clk 0:02:49.7]}
8... Bb4 {[%clk 0:02:50.4]} 9. Qd3 {[%clk 0:02:36.9]} 9... b5 {[%clk 0:02:46.7]}
10. O-O {[%clk 0:02:29.9]} 10... Bb7 {[%clk 0:02:46.8]} 11. e5 {[%clk
0:02:28.1]} 11... Nxd4 {[%clk 0:02:16.4]} 12. Bxd4 {[%clk 0:02:26.4]} 12... Bxc3
{[%clk 0:02:13.3]} 13. bxc3 {[%clk 0:02:11.3]} 13... Nd5 {[%clk 0:02:05.1]} 14.
f5 {[%clk 0:02:07.9]} 14... Rc8 {[%clk 0:01:56.5]} 15. Rad1 {[%clk 0:01:48.1]}
15... Qc6 {[%clk 0:00:53.9]} 16. Qg3 {[%clk 0:01:37]} 16... g6 {[%clk
0:00:47.5]} 17. fxe6 {[%clk 0:01:14.8]} 17... dxe6 {[%clk 0:00:42.7]} 18. Bf3
{[%clk 0:00:58.9]} 18... Qc7 {[%clk 0:00:36.7]} 19. Rd3 {[%clk 0:00:53.2]} 19...
Qe7 {[%clk 0:00:35.6]} 20. Be4 {[%clk 0:00:31.5]} 20... Nxc3 {[%clk 0:00:20.6]}
21. Rxc3 {[%clk 0:00:29.2]} 21... Rxc3 {[%clk 0:00:19.7]} 22. Qxc3 {[%clk
0:00:29]} 22... Bxe4 {[%clk 0:00:20]} 23. Bc5 {[%clk 0:00:20.4]} 23... Qb7
{[%clk 0:00:16.7]} 24. Qd2 {[%clk 0:00:17.3]} 24... f5 {[%clk 0:00:14.2]} 25.
exf6 {[%clk 0:00:16.5]} 25... Bxg2 {[%clk 0:00:12.7]} 26. f7+ {[%clk 0:00:16.3]}
26... Qxf7 {[%clk 0:00:11]} 27. Rxf7 {[%clk 0:00:17.2]} 27... Kxf7 {[%clk
0:00:11.6]} 28. Qd7+ {[%clk 0:00:17.1]} 28... Kf6 {[%clk 0:00:11.1]} 29. Kxg2
{[%clk 0:00:17.4]} 1-0

[Event "*** Titled Tuesday Blitz"]
[Site "Chess.com"]
[Date "2020.04.21"]
[Round "7"]
[White "Msb2"]
[Black "Baby_Legs"]
[Result "1-0"]
[WhiteElo "2922"]
[BlackElo "2713"]
[TimeControl "180+1"]
[EndTime "11:21:46 PDT"]
[Termination "Msb2 won by resignation"]

1. d4 {[%clk 0:03:00.9]} 1... Nf6 {[%clk 0:02:58.5]} 2. Nc3 {[%clk 0:03:01.6]}
2... g6 {[%clk 0:02:54.1]} 3. Nf3 {[%clk 0:02:58.6]} 3... c6 {[%clk 0:02:48.6]}
4. e4 {[%clk 0:02:53.4]} 4... d6 {[%clk 0:02:48.6]} 5. h3 {[%clk 0:02:52.8]}
5... Bg7 {[%clk 0:02:48.5]} 6. Be3 {[%clk 0:02:52.4]} 6... O-O {[%clk
0:02:47.5]} 7. Be2 {[%clk 0:02:52.2]} 7... b5 {[%clk 0:02:47.4]} 8. a3 {[%clk
0:02:51.4]} 8... Qc7 {[%clk 0:02:43.5]} 9. O-O {[%clk 0:02:43.3]} 9... Nbd7
{[%clk 0:02:43.7]} 10. Qd2 {[%clk 0:02:43.4]} 10... e5 {[%clk 0:02:34]} 11. Rad1
{[%clk 0:02:40.2]} 11... Re8 {[%clk 0:02:27.2]} 12. Rfe1 {[%clk 0:02:36.3]}
12... a6 {[%clk 0:02:20.3]} 13. dxe5 {[%clk 0:02:25.2]} 13... dxe5 {[%clk
0:02:20.3]} 14. Qd6 {[%clk 0:02:24.4]} 14... Qxd6 {[%clk 0:02:20]} 15. Rxd6
{[%clk 0:02:25.3]} 15... Bb7 {[%clk 0:02:08.6]} 16. Red1 {[%clk 0:02:25.4]}
16... Nf8 {[%clk 0:02:04.9]} 17. Nd2 {[%clk 0:02:10.5]} 17... Ne6 {[%clk
0:01:52.1]} 18. Nb3 {[%clk 0:02:10.7]} 18... a5 {[%clk 0:01:50.9]} 19. f3 {[%clk
0:01:45.9]} 19... Bf8 {[%clk 0:01:49.7]} 20. R6d2 {[%clk 0:01:45.2]} 20... b4
{[%clk 0:01:40]} 21. Na4 {[%clk 0:01:30.8]} 21... bxa3 {[%clk 0:01:39.2]} 22.
bxa3 {[%clk 0:01:30.2]} 22... Bxa3 {[%clk 0:01:39.1]} 23. Nb6 {[%clk 0:01:30.4]}
23... a4 {[%clk 0:01:19.1]} 24. Nxa8 {[%clk 0:01:16.6]} 24... Rxa8 {[%clk
0:01:17.1]} 25. Nc1 {[%clk 0:01:12.4]} 25... Bb4 {[%clk 0:01:14.2]} 26. c3
{[%clk 0:00:55.3]} 26... Bxc3 {[%clk 0:01:13.1]} 27. Ra2 {[%clk 0:00:55.9]}
27... Nd4 {[%clk 0:01:08.2]} 28. Bc4 {[%clk 0:00:55.4]} 28... Nd7 {[%clk
0:01:05]} 29. Nd3 {[%clk 0:00:54.6]} 29... c5 {[%clk 0:00:39.7]} 30. Rc1 {[%clk
0:00:38.5]} 30... Bb4 {[%clk 0:00:40]} 31. Rb1 {[%clk 0:00:38.8]} 31... Nb6
{[%clk 0:00:36.1]} 32. Bxf7+ {[%clk 0:00:26.3]} 32... Kxf7 {[%clk 0:00:35.2]}
33. Nxe5+ {[%clk 0:00:26.7]} 33... Ke6 {[%clk 0:00:32.6]} 34. Bxd4 {[%clk
0:00:27.6]} 34... a3 {[%clk 0:00:27.3]} 35. Nd3 {[%clk 0:00:25.8]} 35... Rd8
{[%clk 0:00:12.8]} 36. Nxc5+ {[%clk 0:00:24.5]} 36... Bxc5 {[%clk 0:00:11.3]}
37. Bxc5 {[%clk 0:00:25.4]} 1-0

[Event "*** Titled Tuesday Blitz"]
[Site "Chess.com"]
[Date "2020.04.21"]
[Round "7"]
[White "Manukyan_Artak"]
[Black "Triumphmate"]
[Result "1-0"]
[WhiteElo "2376"]
[BlackElo "2538"]
[TimeControl "180+1"]
[EndTime "11:21:46 PDT"]
[Termination "Manukyan_Artak won by resignation"]

1. e4 {[%clk 0:03:00.9]} 1... d5 {[%clk 0:03:00.9]} 2. exd5 {[%clk 0:03:00.8]}
2... Nf6 {[%clk 0:02:59.7]} 3. Nc3 {[%clk 0:03:00.4]} 3... Bg4 {[%clk
0:02:57.4]} 4. f3 {[%clk 0:02:57.9]} 4... Bf5 {[%clk 0:02:53.9]} 5. Bb5+ {[%clk
0:02:56.5]} 5... c6 {[%clk 0:02:52]} 6. dxc6 {[%clk 0:02:56.4]} 6... Nxc6 {[%clk
0:02:52.9]} 7. Nge2 {[%clk 0:02:54.5]} 7... e5 {[%clk 0:02:52.5]} 8. d3 {[%clk
0:02:49]} 8... Bc5 {[%clk 0:02:52.9]} 9. Ng3 {[%clk 0:02:47.9]} 9... Bg6 {[%clk
0:02:48.9]} 10. Nge4 {[%clk 0:02:26.7]} 10... Nxe4 {[%clk 0:02:37.3]} 11. Bxc6+
{[%clk 0:02:24.4]} 11... bxc6 {[%clk 0:02:36.5]} 12. Nxe4 {[%clk 0:02:24.9]}
12... Bxe4 {[%clk 0:02:35]} 13. dxe4 {[%clk 0:02:17.6]} 13... Qh4+ {[%clk
0:02:35]} 14. g3 {[%clk 0:02:16.2]} 14... Qh3 {[%clk 0:02:35.5]} 15. Qe2 {[%clk
0:02:12.9]} 15... O-O {[%clk 0:02:33.5]} 16. Be3 {[%clk 0:02:03.2]} 16... Bxe3
{[%clk 0:02:32.1]} 17. Qxe3 {[%clk 0:02:03.3]} 17... Rfd8 {[%clk 0:02:31.3]} 18.
Qe2 {[%clk 0:01:16.7]} 18... Rab8 {[%clk 0:02:09.2]} 19. b3 {[%clk 0:01:09.9]}
19... Rd4 {[%clk 0:01:57.4]} 20. Rd1 {[%clk 0:01:08.7]} 20... Rbd8 {[%clk
0:01:57.8]} 21. Rxd4 {[%clk 0:01:08.4]} 21... exd4 {[%clk 0:01:58.3]} 22. Kd2
{[%clk 0:00:55.7]} 22... c5 {[%clk 0:01:56.3]} 23. Kc1 {[%clk 0:00:53.6]} 23...
Qe6 {[%clk 0:01:48.5]} 24. Re1 {[%clk 0:00:45.5]} 24... a5 {[%clk 0:01:48.7]}
25. a4 {[%clk 0:00:41]} 25... Qe5 {[%clk 0:01:48]} 26. f4 {[%clk 0:00:39.5]}
26... Qb8 {[%clk 0:01:46.1]} 27. Qc4 {[%clk 0:00:38.3]} 27... d3 {[%clk
0:01:44.9]} 28. cxd3 {[%clk 0:00:34.6]} 28... Rd4 {[%clk 0:01:44.8]} 29. Qc3
{[%clk 0:00:31.8]} 29... Qd8 {[%clk 0:01:45]} 30. Kc2 {[%clk 0:00:30.4]} 30...
h5 {[%clk 0:01:43.3]} 31. e5 {[%clk 0:00:29.8]} 31... h4 {[%clk 0:00:46.9]} 32.
Re4 {[%clk 0:00:29.7]} 32... hxg3 {[%clk 0:00:42.7]} 33. hxg3 {[%clk 0:00:28.8]}
33... Rd7 {[%clk 0:00:39.2]} 34. Qc4 {[%clk 0:00:22.3]} 34... Qe7 {[%clk
0:00:28.9]} 35. e6 {[%clk 0:00:21.5]} 35... fxe6 {[%clk 0:00:23.6]} 36. Qxe6+
{[%clk 0:00:21.6]} 36... Qxe6 {[%clk 0:00:23.4]} 37. Rxe6 {[%clk 0:00:22.5]} 1-0

[Event "*** Titled Tuesday Blitz"]
[Site "Chess.com"]
[Date "2020.04.21"]
[Round "7"]
[White "saisree"]
[Black "Mizner"]
[Result "0-1"]
[WhiteElo "2333"]
[BlackElo "2511"]
[TimeControl "180+1"]
[EndTime "11:21:47 PDT"]
[Termination "Mizner won by resignation"]

1. e4 {[%clk 0:03:00.9]} 1... e6 {[%clk 0:02:59.6]} 2. d4 {[%clk 0:03:00.7]}
2... d5 {[%clk 0:03:00.5]} 3. Nd2 {[%clk 0:03:01]} 3... c5 {[%clk 0:03:00.2]} 4.
exd5 {[%clk 0:03:00.5]} 4... Qxd5 {[%clk 0:03:01.1]} 5. Ngf3 {[%clk 0:02:59.7]}
5... cxd4 {[%clk 0:03:01.5]} 6. Bc4 {[%clk 0:03:00.4]} 6... Qc5 {[%clk
0:03:02.1]} 7. O-O {[%clk 0:03:01.1]} 7... Nc6 {[%clk 0:03:02.3]} 8. Qe2 {[%clk
0:02:48.6]} 8... Be7 {[%clk 0:03:02]} 9. Nb3 {[%clk 0:02:46.1]} 9... Qb6 {[%clk
0:03:02.3]} 10. Rd1 {[%clk 0:02:30.2]} 10... Bf6 {[%clk 0:03:02.4]} 11. Bg5
{[%clk 0:02:20.1]} 11... Bxg5 {[%clk 0:02:55.6]} 12. Nxg5 {[%clk 0:02:20.4]}
12... Nge7 {[%clk 0:02:50.3]} 13. Qh5 {[%clk 0:01:35.1]} 13... Ng6 {[%clk
0:02:44.9]} 14. Nf3 {[%clk 0:01:35.6]} 14... e5 {[%clk 0:02:31]} 15. Ng5 {[%clk
0:01:32.4]} 15... Nd8 {[%clk 0:02:29.4]} 16. c3 {[%clk 0:01:29]} 16... Qc6
{[%clk 0:02:02.4]} 17. Na5 {[%clk 0:00:47]} 17... Qxg2+ {[%clk 0:01:29.3]} 18.
Kxg2 {[%clk 0:00:40.9]} 18... Nf4+ {[%clk 0:01:30.2]} 19. Kf3 {[%clk 0:00:39]}
19... Nxh5 {[%clk 0:01:30.4]} 20. cxd4 {[%clk 0:00:37.6]} 20... h6 {[%clk
0:01:25.8]} 21. Ne4 {[%clk 0:00:33.9]} 21... exd4 {[%clk 0:01:07.4]} 22. Nd6+
{[%clk 0:00:32.2]} 22... Ke7 {[%clk 0:01:06.4]} 23. Nxc8+ {[%clk 0:00:14.7]}
23... Rxc8 {[%clk 0:01:06.1]} 24. Rxd4 {[%clk 0:00:15.4]} 24... Ne6 {[%clk
0:00:42.9]} 25. Bxe6 {[%clk 0:00:15.4]} 25... fxe6 {[%clk 0:00:42.6]} 26. Nxb7
{[%clk 0:00:12]} 26... Rhf8+ {[%clk 0:00:41.4]} 27. Kg4 {[%clk 0:00:08.7]} 27...
Nf6+ {[%clk 0:00:29.8]} 28. Kg3 {[%clk 0:00:09.2]} 28... Rb8 {[%clk 0:00:23.1]}
29. Nc5 {[%clk 0:00:08.3]} 29... e5 {[%clk 0:00:21.9]} 30. Rd2 {[%clk
0:00:03.4]} 30... Rb5 {[%clk 0:00:18.8]} 31. b3 {[%clk 0:00:01.2]} 31... Rxc5
{[%clk 0:00:18.8]} 0-1

[Event "*** Titled Tuesday Blitz"]
[Site "Chess.com"]
[Date "2020.04.21"]
[Round "7"]
[White "FearNoEvil12"]
[Black "alex_zapata"]
[Result "1-0"]
[WhiteElo "2034"]
[BlackElo "2223"]
[TimeControl "180+1"]
[EndTime "11:21:47 PDT"]
[Termination "FearNoEvil12 won on time"]

1. e4 {[%clk 0:03:00.9]} 1... c5 {[%clk 0:02:57.9]} 2. Nc3 {[%clk 0:02:59.7]}
2... e6 {[%clk 0:02:58]} 3. f4 {[%clk 0:03:00.1]} 3... d5 {[%clk 0:02:58.3]} 4.
Nf3 {[%clk 0:03:00.2]} 4... dxe4 {[%clk 0:02:58.8]} 5. Bb5+ {[%clk 0:02:58.6]}
5... Nd7 {[%clk 0:02:57.8]} 6. Nxe4 {[%clk 0:02:56.7]} 6... Nf6 {[%clk
0:02:58.3]} 7. Qe2 {[%clk 0:02:55.1]} 7... Be7 {[%clk 0:02:56.7]} 8. O-O {[%clk
0:02:51.4]} 8... O-O {[%clk 0:02:55.9]} 9. d3 {[%clk 0:02:46]} 9... a6 {[%clk
0:02:53.7]} 10. Bc4 {[%clk 0:02:44]} 10... b5 {[%clk 0:02:52]} 11. Bb3 {[%clk
0:02:43.6]} 11... Bb7 {[%clk 0:02:51.6]} 12. c3 {[%clk 0:02:41.7]} 12... Qc7
{[%clk 0:02:47.7]} 13. Bd2 {[%clk 0:02:35.8]} 13... Nd5 {[%clk 0:02:44.7]} 14.
Rae1 {[%clk 0:02:31.7]} 14... Nxf4 {[%clk 0:02:31.7]} 15. Bxf4 {[%clk
0:02:16.5]} 15... Qxf4 {[%clk 0:02:32.6]} 16. Ng3 {[%clk 0:02:09.5]} 16... Qh6
{[%clk 0:01:18.2]} 17. Nf5 {[%clk 0:01:54.8]} 17... exf5 {[%clk 0:01:10.3]} 18.
Qxe7 {[%clk 0:01:53.9]} 18... Bc6 {[%clk 0:01:03.7]} 19. Ne5 {[%clk 0:01:37.7]}
19... Nxe5 {[%clk 0:00:54.8]} 20. Qxe5 {[%clk 0:01:35.3]} 20... Rae8 {[%clk
0:00:28.1]} 21. Qxf5 {[%clk 0:01:28.9]} 21... Rxe1 {[%clk 0:00:11.7]} 22. Rxe1
{[%clk 0:01:28.1]} 22... Qd2 {[%clk 0:00:12.3]} 23. Qf2 {[%clk 0:01:14.2]} 23...
Qxd3 {[%clk 0:00:12.6]} 24. Qxc5 {[%clk 0:01:12.5]} 24... Qg6 {[%clk 0:00:05.9]}
25. Qf2 {[%clk 0:01:08.4]} 25... h5 {[%clk 0:00:06]} 26. Bc2 {[%clk 0:01:07.2]}
26... Qg5 {[%clk 0:00:05.7]} 27. Bb3 {[%clk 0:01:00.5]} 27... g6 {[%clk
0:00:05.1]} 28. Rf1 {[%clk 0:00:56]} 28... Be8 {[%clk 0:00:02.3]} 29. Qf6 {[%clk
0:00:49.4]} 29... Qc5+ {[%clk 0:00:02.2]} 30. Kh1 {[%clk 0:00:45.3]} 30... Kh7
{[%clk 0:00:02]} 31. h3 {[%clk 0:00:39.5]} 31... a5 {[%clk 0:00:02]} 32. Bc2
{[%clk 0:00:36.4]} 32... a4 {[%clk 0:00:01.7]} 33. Qf3 {[%clk 0:00:33]} 33...
Qg5 {[%clk 0:00:01.2]} 34. Qf4 {[%clk 0:00:29.5]} 34... Qxf4 {[%clk 0:00:01.2]}
35. Rxf4 {[%clk 0:00:28.6]} 35... Bc6 {[%clk 0:00:01.9]} 36. Rf6 {[%clk
0:00:22.9]} 1-0

[Event "*** Titled Tuesday Blitz"]
[Site "Chess.com"]
[Date "2020.04.21"]
[Round "7"]
[White "DrVitman"]
[Black "Vincent_Vega95"]
[Result "1-0"]
[WhiteElo "2553"]
[BlackElo "2701"]
[TimeControl "180+1"]
[EndTime "11:21:50 PDT"]
[Termination "DrVitman won by resignation"]

1. e4 {[%clk 0:03:00.9]} 1... c5 {[%clk 0:02:59.8]} 2. Nc3 {[%clk 0:03:01.3]}
2... Nc6 {[%clk 0:02:59.7]} 3. Bb5 {[%clk 0:03:01.7]} 3... Qc7 {[%clk
0:02:59.1]} 4. Nf3 {[%clk 0:03:01.6]} 4... Nf6 {[%clk 0:02:59]} 5. O-O {[%clk
0:03:00.4]} 5... Nd4 {[%clk 0:02:59.3]} 6. Bd3 {[%clk 0:02:46]} 6... Nxf3+
{[%clk 0:02:47.9]} 7. Qxf3 {[%clk 0:02:46.9]} 7... a6 {[%clk 0:02:47]} 8. Nd5
{[%clk 0:02:43.7]} 8... Nxd5 {[%clk 0:02:39.1]} 9. exd5 {[%clk 0:02:44.6]} 9...
Qe5 {[%clk 0:02:31.7]} 10. Rb1 {[%clk 0:02:21.6]} 10... Qf6 {[%clk 0:02:02.6]}
11. Qe2 {[%clk 0:02:15.9]} 11... b5 {[%clk 0:01:59.6]} 12. b3 {[%clk 0:02:14.7]}
12... d6 {[%clk 0:01:49]} 13. Bb2 {[%clk 0:02:12.1]} 13... Qg5 {[%clk
0:01:42.5]} 14. f4 {[%clk 0:02:05.8]} 14... Qg4 {[%clk 0:01:41.5]} 15. Qf2
{[%clk 0:01:43.9]} 15... Bf5 {[%clk 0:01:41.4]} 16. h3 {[%clk 0:01:36.7]} 16...
Qg6 {[%clk 0:01:41.2]} 17. Bxf5 {[%clk 0:01:32.4]} 17... Qxf5 {[%clk 0:01:41.2]}
18. c4 {[%clk 0:01:30.9]} 18... h5 {[%clk 0:01:38.1]} 19. d4 {[%clk 0:01:23]}
19... cxd4 {[%clk 0:01:24]} 20. Qxd4 {[%clk 0:01:23.9]} 20... Qd7 {[%clk
0:01:12]} 21. Kh1 {[%clk 0:01:08.7]} 21... Rc8 {[%clk 0:01:03.5]} 22. Rbc1
{[%clk 0:01:07.6]} 22... bxc4 {[%clk 0:00:39.1]} 23. Rxc4 {[%clk 0:01:04.9]}
23... f6 {[%clk 0:00:35.4]} 24. Rfc1 {[%clk 0:00:54.1]} 24... Rxc4 {[%clk
0:00:35]} 25. Qxc4 {[%clk 0:00:54.1]} 25... Kf7 {[%clk 0:00:33.3]} 26. Qxa6
{[%clk 0:00:53.2]} 26... g6 {[%clk 0:00:30.8]} 27. Qc8 {[%clk 0:00:48.6]} 27...
Qb5 {[%clk 0:00:19.1]} 28. Qe6+ {[%clk 0:00:45.9]} 28... Kg7 {[%clk 0:00:19.6]}
29. Kh2 {[%clk 0:00:39.5]} 29... Qb6 {[%clk 0:00:13.8]} 30. Rf1 {[%clk
0:00:22.5]} 30... h4 {[%clk 0:00:13.6]} 31. f5 {[%clk 0:00:21.6]} 31... Rh5
{[%clk 0:00:12.8]} 32. fxg6 {[%clk 0:00:20.4]} 32... Qd8 {[%clk 0:00:06.8]} 33.
Qf7+ {[%clk 0:00:19.5]} 1-0

[Event "*** Titled Tuesday Blitz"]
[Site "Chess.com"]
[Date "2020.04.21"]
[Round "7"]
[White "PetrolulSah"]
[Black "UmutErdemGunduz"]
[Result "0-1"]
[WhiteElo "2208"]
[BlackElo "2360"]
[TimeControl "180+1"]
[EndTime "11:21:51 PDT"]
[Termination "UmutErdemGunduz won by resignation"]

1. d4 {[%clk 0:03:00.9]} 1... Nf6 {[%clk 0:02:59.7]} 2. c4 {[%clk 0:02:55.4]}
2... e6 {[%clk 0:02:59.2]} 3. g3 {[%clk 0:02:54.1]} 3... c5 {[%clk 0:02:59.2]}
4. Nf3 {[%clk 0:02:53.5]} 4... cxd4 {[%clk 0:02:53.1]} 5. Nxd4 {[%clk
0:02:53.5]} 5... Nc6 {[%clk 0:02:53.5]} 6. Bg2 {[%clk 0:02:53]} 6... Bc5 {[%clk
0:02:51.4]} 7. e3 {[%clk 0:02:49.7]} 7... O-O {[%clk 0:02:50.5]} 8. O-O {[%clk
0:02:49.4]} 8... d5 {[%clk 0:02:48.2]} 9. cxd5 {[%clk 0:02:45.4]} 9... exd5
{[%clk 0:02:44.5]} 10. Nc3 {[%clk 0:02:44.7]} 10... Bg4 {[%clk 0:02:36.3]} 11.
Qb3 {[%clk 0:02:41.3]} 11... Bxd4 {[%clk 0:02:15.3]} 12. exd4 {[%clk 0:02:38.4]}
12... Nxd4 {[%clk 0:02:15.8]} 13. Qxb7 {[%clk 0:02:33.2]} 13... Bf3 {[%clk
0:02:11.7]} 14. Be3 {[%clk 0:02:16.9]} 14... Bxg2 {[%clk 0:02:06.8]} 15. Kxg2
{[%clk 0:02:17.5]} 15... Nc2 {[%clk 0:01:58]} 16. Rab1 {[%clk 0:02:12.1]} 16...
d4 {[%clk 0:01:55.5]} 17. Rfd1 {[%clk 0:01:57]} 17... Nxe3+ {[%clk 0:01:48.8]}
18. fxe3 {[%clk 0:01:55.6]} 18... Ng4 {[%clk 0:01:49.7]} 19. exd4 {[%clk
0:01:31.1]} 19... Ne3+ {[%clk 0:01:47.2]} 20. Kg1 {[%clk 0:01:31.3]} 20... Nxd1
{[%clk 0:01:48.1]} 21. Rxd1 {[%clk 0:01:31.7]} 21... Rb8 {[%clk 0:01:47.4]} 22.
Qxa7 {[%clk 0:01:31.2]} 22... Rxb2 {[%clk 0:01:48]} 23. Qc5 {[%clk 0:01:24.7]}
23... Qf6 {[%clk 0:01:42.3]} 24. Rf1 {[%clk 0:01:21.7]} 24... Qh6 {[%clk
0:01:39.4]} 25. Rf2 {[%clk 0:00:54.5]} 25... Qe3 {[%clk 0:01:36.1]} 26. Nd1
{[%clk 0:00:46.8]} 26... Rb1 {[%clk 0:01:22.4]} 27. Qc2 {[%clk 0:00:41.2]} 27...
Rc1 {[%clk 0:01:16]} 28. Qd2 {[%clk 0:00:36.9]} 28... Qa3 {[%clk 0:00:56.1]} 29.
d5 {[%clk 0:00:32.4]} 29... h5 {[%clk 0:00:46.6]} 30. d6 {[%clk 0:00:29.5]}
30... h4 {[%clk 0:00:47]} 31. gxh4 {[%clk 0:00:28.3]} 31... Rc6 {[%clk
0:00:43.4]} 32. d7 {[%clk 0:00:26.9]} 32... Rd6 {[%clk 0:00:43.7]} 33. Qe2
{[%clk 0:00:20.6]} 33... Rxd7 {[%clk 0:00:42.8]} 34. Ne3 {[%clk 0:00:20.7]}
34... Re8 {[%clk 0:00:42.2]} 35. Rf3 {[%clk 0:00:18.3]} 35... Qc1+ {[%clk
0:00:37.4]} 36. Qf1 {[%clk 0:00:16]} 36... Qc5 {[%clk 0:00:34.7]} 37. Qf2 {[%clk
0:00:13.4]} 37... Rde7 {[%clk 0:00:31]} 38. Ng4 {[%clk 0:00:11.8]} 38... Re1+
{[%clk 0:00:30.6]} 39. Kg2 {[%clk 0:00:09.3]} 39... R1e2 {[%clk 0:00:31.1]} 0-1